bitfinex-derivatives/quotes_BTCF0:USTF0_20251011
["timestamp","ask_amount","ask_price","bid_price","bid_amount"]
[1760202532775,0.18154739,111910.0,111900.0,0.52756749]
[1760202533072,0.18154739,111910.0,111900.0,0.125365]
[1760202536369,0.09227039,111910.0,111900.0,0.125365]
[1760202536575,0.07080039,111910.0,111900.0,1.28836749]
[1760202537576,0.06980039,111910.0,111900.0,1.28836749]
[1760202538076,0.471529,111940.0,111930.0,0.1253411]
[1760202538875,0.54296009,111940.0,111930.0,0.1253411]
[1760202539976,0.45470109,111940.0,111930.0,0.1253411]
[1760202540175,0.45470109,111940.0,111930.0,0.52754359]
[1760202540379,0.54395419,111940.0,111930.0,0.03608]
[1760202540579,0.54395419,111940.0,111930.0,0.1253411]
[1760202542878,0.18315419,111940.0,111930.0,0.1253411]
[1760202543478,0.54395419,111940.0,111930.0,0.1253411]
[1760202543879,0.54395419,111940.0,111930.0,0.03608]
[1760202545081,0.54395419,111940.0,111930.0,0.1253411]
[1760202545282,0.54395419,111940.0,111930.0,0.02269]
[1760202545283,0.55783419,111940.0,111930.0,0.02269]
[1760202548183,0.55783419,111940.0,111930.0,0.03608]
[1760202548384,0.54395419,111940.0,111930.0,0.03608]
[1760202558486,0.55677419,111940.0,111930.0,0.03608]
[1760202558796,0.1241211,111930.0,111920.0,0.02245]
[1760202559093,0.4849211,111930.0,111920.0,0.02245]
[1760202559285,0.4849211,111930.0,111920.0,0.03577]
[1760202560894,0.4721011,111930.0,111920.0,0.1250391]
[1760202561595,0.1113011,111930.0,111920.0,0.1250391]
[1760202566494,0.52148889,111940.0,111920.0,0.43797249]
[1760202566798,0.18272889,111940.0,111930.0,0.1250311]
[1760202568499,0.18372889,111940.0,111930.0,0.1250311]
[1760202570097,0.09447109,111940.0,111930.0,0.52723359]
[1760202570296,0.09447109,111940.0,111930.0,0.1250311]
[1760202572401,0.07243109,111940.0,111930.0,0.4858311]
[1760202573001,0.07243109,111940.0,111930.0,0.88803359]
[1760202573211,0.09447109,111940.0,111930.0,0.88803359]
[1760202573696,0.18372419,111940.0,111930.0,0.4858311]
[1760202573898,0.18372419,111940.0,111930.0,0.52723359]
[1760202574096,0.18372419,111940.0,111930.0,0.1250311]
[1760202576604,0.09447109,111940.0,111930.0,0.1250311]
[1760202576903,0.09447109,111940.0,111930.0,0.4858311]
[1760202577506,0.09447109,111940.0,111930.0,0.93792277]
[1760202580010,0.09447109,111940.0,111930.0,0.57712277]
[1760202580206,0.18372419,111940.0,111930.0,0.57712277]
[1760202580401,0.09447109,111940.0,111930.0,0.57712277]
[1760202580807,0.18372419,111940.0,111930.0,0.57712277]
[1760202582309,0.18372419,111940.0,111930.0,0.1250311]
[1760202582507,0.18372419,111940.0,111930.0,0.57712277]
[1760202583206,1.04894586,111940.0,111930.0,0.02245]
[1760202583412,0.1256911,111930.0,111920.0,0.02329]
[1760202583606,0.93858277,111930.0,111920.0,0.02329]
[1760202585411,0.93858277,111930.0,111920.0,0.0363]
[1760202585412,0.4864911,111930.0,111920.0,0.0363]
[1760202586514,0.4874911,111930.0,111920.0,0.0363]
[1760202586911,0.4874911,111930.0,111920.0,0.02329]
[1760202590821,0.4874911,111930.0,111920.0,0.0363]
[1760202592724,0.1266911,111930.0,111920.0,0.0363]
[1760202593019,0.4874911,111930.0,111920.0,0.0363]
[1760202593622,0.0243,111930.0,111920.0,0.93846077]
[1760202593820,0.1135611,111930.0,111920.0,0.93846077]
[1760202594224,0.1135611,111930.0,111920.0,0.57766077]
[1760202594522,0.1135611,111930.0,111920.0,0.93846077]
[1760202594723,0.001,111930.0,111920.0,0.93846077]
[1760202595123,0.0243,111930.0,111920.0,0.93846077]
[1760202596628,0.001,111930.0,111920.0,1.79055244]
[1760202596923,0.001,111930.0,111920.0,1.33846077]
[1760202600631,0.07143109,111940.0,111930.0,0.1255611]
[1760202600930,0.4872202,111960.0,111950.0,0.1255451]
[1760202601131,0.4733402,111960.0,111950.0,0.57763677]
[1760202602632,0.4753402,111960.0,111950.0,0.57763677]
[1760202602830,0.4753402,111960.0,111950.0,0.58697488]
[1760202603228,0.54701553,111960.0,111950.0,0.58697488]
[1760202604434,0.56014553,111960.0,111950.0,0.58697488]
[1760202606135,0.54701553,111960.0,111950.0,0.58697488]
[1760202610037,0.56014553,111960.0,111950.0,0.13488321]
[1760202610239,0.56014553,111960.0,111950.0,0.58697488]
[1760202610434,0.3608,111980.0,111950.0,1.79986655]
[1760202610732,0.4733212,111980.0,111970.0,0.57762087]
[1760202611134,0.1125212,111980.0,111970.0,0.57762087]
[1760202611335,0.4733212,111980.0,111970.0,0.57762087]
[1760202611634,0.4743212,111980.0,111970.0,0.57762087]
[1760202612238,0.54598369,111980.0,111970.0,0.57762087]
[1760202613539,0.45676249,111980.0,111970.0,0.57762087]
[1760202613838,0.09596249,111980.0,111970.0,0.57762087]
[1760202614639,0.09596249,111980.0,111970.0,0.93842087]
[1760202614835,0.09496249,111980.0,111970.0,0.93842087]
[1760202615444,0.07166249,111980.0,111970.0,1.33842087]
[1760202615740,0.38244,111990.0,111980.0,0.1254712]
[1760202615941,0.02164,111990.0,111980.0,0.93836287]
[1760202616441,0.38244,112000.0,111990.0,0.1254632]
[1760202616742,0.06999421,112000.0,111990.0,1.39044654]
[1760202616936,0.06999421,112000.0,111990.0,1.79044654]
[1760202617142,0.02164,112010.0,112000.0,0.1254521]
[1760202617436,0.02164,112010.0,112000.0,0.57754377]
[1760202618842,0.02164,112010.0,112000.0,0.93834377]
[1760202619433,1.18073585,112030.0,112000.0,0.93834377]
[1760202619434,0.02164,112020.0,112010.0,0.03625]
[1760202619635,0.02164,112020.0,112010.0,0.48834167]
[1760202619837,0.02164,112020.0,112010.0,0.57753897]
[1760202620342,0.54228491,112030.0,112020.0,0.03625]
[1760202620542,0.54228491,112030.0,112020.0,0.48834167]
[1760202624545,0.54228491,112030.0,112020.0,0.94043334]
[1760202624844,0.54228491,112030.0,112020.0,0.48834167]
[1760202626743,0.54228491,112030.0,112020.0,0.94043334]
[1760202627138,0.07066031,112030.0,112020.0,1.02962264]
[1760202627342,0.1108055,112050.0,112040.0,0.03625]
[1760202627541,0.4716055,112050.0,112040.0,0.48834167]
[1760202630239,0.0891734,112040.0,112030.0,0.01353]
[1760202630544,0.93729507,112040.0,112030.0,0.48834167]
[1760202630744,0.4852034,112040.0,112030.0,0.48834167]
[1760202632846,0.1108134,112040.0,112030.0,0.57752307]
[1760202634250,0.0891734,112040.0,112030.0,0.5254314]
[1760202634450,0.0891734,112040.0,112030.0,0.97752307]
[1760202635042,0.18381847,112050.0,112040.0,0.1254234]
[1760202635237,0.18381847,112050.0,112040.0,0.57751507]
[1760202635438,0.09464857,112050.0,112040.0,0.57751507]
[1760202635639,0.07300857,112050.0,112040.0,1.42960674]
[1760202635840,0.4499625,112060.0,112050.0,0.1254155]
[1760202635841,0.1107975,112060.0,112050.0,0.1254155]
[1760202636046,0.1107975,112060.0,112050.0,1.02959884]
[1760202636247,0.4715975,112060.0,112050.0,0.03625]
[1760202636447,0.4715975,112060.0,112050.0,0.57750717]
[1760202637649,0.54354403,112060.0,112050.0,0.57750717]
[1760202639451,0.54354403,112060.0,112050.0,0.5264518]
[1760202639652,0.55713403,112060.0,112050.0,0.4372863]
[1760202640545,0.1234114,112030.0,112020.0,0.03612]
[1760202640744,0.1234114,112030.0,112020.0,0.02259]
[1760202640745,0.8852477,112030.0,112020.0,0.02259]
[1760202641345,0.8842114,112030.0,112020.0,0.02259]
[1760202641548,0.1234094,112020.0,112010.0,0.03052157]
[1760202641752,0.8852457,112020.0,112010.0,0.00942157]
[1760202642055,0.1234217,112010.0,112000.0,0.0211]
[1760202642249,0.4842217,112010.0,112000.0,0.0211]
[1760202642648,0.0892133,111990.0,111980.0,0.0135]
[1760202642847,0.4842333,111990.0,111980.0,0.0211]
[1760202643045,0.8852696,111990.0,111980.0,0.00936048]
[1760202643255,0.4842333,111990.0,111980.0,0.0211]
[1760202643555,0.39502,111990.0,111980.0,0.0211]
[1760202643855,0.4842333,111990.0,111980.0,0.0211]
[1760202644853,0.4842333,111990.0,111970.0,0.01267]
[1760202645159,0.1234412,111980.0,111970.0,0.0430069]
[1760202645355,0.4842412,111980.0,111970.0,0.0303369]
[1760202646155,0.38227,111980.0,111970.0,0.1322361]
[1760202647058,0.38227,111990.0,111980.0,0.1229912]
[1760202647260,0.4714833,111990.0,111980.0,0.1229912]
[1760202647457,0.54331067,111990.0,111980.0,0.1229912]
[1760202648360,0.43262737,111990.0,111980.0,0.1229912]
[1760202648753,0.07182737,111990.0,111980.0,0.1229912]
[1760202649058,0.02147,112000.0,111990.0,0.1229833]
[1760202649556,0.1106753,112000.0,111990.0,0.03377]
[1760202649757,0.1234253,112000.0,111990.0,0.03377]
[1760202649957,0.4842253,112000.0,111990.0,0.03377]
[1760202651360,0.4842253,112000.0,111990.0,0.1229833]
[1760202651763,0.55433356,112000.0,111990.0,0.1229833]
[1760202653465,0.54158356,112000.0,111990.0,0.1229833]
[1760202657568,0.18078356,112000.0,111990.0,0.1229833]
[1760202657965,0.54158356,112000.0,111990.0,0.1229833]
[1760202659470,0.55433356,112000.0,111990.0,0.0211]
[1760202659870,0.1234333,111990.0,111980.0,0.0211]
[1760202660070,0.4842333,111990.0,111980.0,0.0211]
[1760202660268,0.4842333,111990.0,111980.0,0.1229912]
[1760202660472,0.02147,111990.0,111980.0,0.1229912]
[1760202660965,0.45237826,112000.0,111990.0,0.0892133]
[1760202661162,0.54158356,112000.0,111990.0,0.1229833]
[1760202661364,0.07010826,112000.0,111990.0,0.94373147]
[1760202661569,0.38227,112020.0,112010.0,0.1229673]
[1760202662472,0.4714594,112020.0,112010.0,0.1229673]
[1760202663564,0.4714594,112020.0,112010.0,0.52430412]
[1760202663869,0.54328899,112020.0,112010.0,0.52430412]
[1760202664469,0.45409959,112020.0,112010.0,0.52430412]
[1760202666273,0.09329959,112020.0,112010.0,0.52430412]
[1760202666571,0.07182959,112020.0,112010.0,1.28510412]
[1760202666768,0.3608,112030.0,112020.0,0.1229594]
[1760202666971,0.38227,112030.0,112020.0,0.52429622]
[1760202667174,0.3608,112030.0,112020.0,0.52429622]
[1760202669175,0.3608,112030.0,112020.0,0.92429622]
[1760202670073,0.09337951,112040.0,112030.0,0.1229514]
[1760202670274,0.45417951,112040.0,112030.0,0.52428822]
[1760202671082,0.09337951,112040.0,112030.0,0.52428822]
[1760202672177,0.45417951,112040.0,112030.0,0.52428822]
[1760202676084,0.45417951,112040.0,112030.0,0.92428822]
[1760202676085,0.07190951,112040.0,112030.0,0.92428822]
[1760202676388,0.4725209,112060.0,112050.0,0.1234655]
[1760202676587,0.4725209,112060.0,112050.0,0.52480232]
[1760202677084,0.78336,112060.0,112050.0,0.52480232]
[1760202677586,0.85355209,112060.0,112050.0,0.52480232]
[1760202677786,0.09275209,112060.0,112050.0,0.52480232]
[1760202678483,0.45355209,112060.0,112050.0,0.52480232]
[1760202678780,0.54270959,112060.0,112050.0,0.52480232]
[1760202679990,0.45355209,112060.0,112050.0,0.52480232]
[1760202681090,0.45355209,112060.0,112050.0,0.53414942]
[1760202683592,0.09275209,112060.0,112050.0,0.53414942]
[1760202683794,0.09275209,112060.0,112050.0,0.89494942]
[1760202684291,0.07019209,112060.0,112050.0,0.89494942]
[1760202684489,0.3608,112070.0,112050.0,0.89494942]
[1760202684689,0.38336,112070.0,112060.0,0.52479412]
[1760202686299,0.02256,112070.0,112060.0,0.52479412]
[1760202687599,0.0943147,112070.0,112060.0,0.52479412]
[1760202687799,0.02256,112070.0,112060.0,0.52479412]
[1760202688499,0.4857191,112070.0,112060.0,0.1102273]
[1760202688700,0.39657,112070.0,112060.0,0.1102273]
[1760202689504,0.39657,112070.0,112060.0,0.1234573]
[1760202691006,0.38336,112070.0,112060.0,0.1234573]
[1760202691707,0.38336,112070.0,112060.0,0.52479412]
[1760202692004,0.4559278,112070.0,112060.0,0.52479412]
[1760202694604,0.5582871,112070.0,112060.0,0.0343]
[1760202695008,0.5582871,112070.0,112060.0,0.1234573]
[1760202695603,0.5582871,112070.0,112060.0,0.02107]
[1760202696203,0.5582871,112070.0,112060.0,0.1102273]
[1760202697610,0.5582871,112070.0,112060.0,0.1234573]
[1760202699410,0.5450771,112070.0,112060.0,0.1234573]
[1760202700007,0.4559278,112070.0,112060.0,0.52479412]
[1760202700610,0.5450771,112070.0,112060.0,0.52479412]
[1760202701013,0.1842771,112070.0,112060.0,0.52479412]
[1760202701313,0.0951278,112070.0,112060.0,0.52479412]
[1760202701513,0.0951278,112070.0,112060.0,0.5745694]
[1760202706523,0.1842773,112070.0,112060.0,0.5745694]
[1760202707223,0.0951278,112070.0,112060.0,0.5745694]
[1760202708725,0.0725678,112070.0,112060.0,0.5745694]
[1760202709223,0.38381,112080.0,112070.0,0.1248895]
[1760202709425,0.38381,112080.0,112070.0,0.5760016]
[1760202709926,0.54469276,112080.0,112070.0,0.5760016]
[1760202710729,0.55737276,112080.0,112070.0,0.4741021]
[1760202711025,1.00848486,112080.0,112070.0,0.4741021]
[1760202711223,1.00848486,112080.0,112070.0,0.02299]
[1760202712026,0.1248395,112070.0,112060.0,0.5764846]
[1760202712229,0.9367516,112070.0,112060.0,0.5764846]
[1760202713027,0.4729595,112070.0,112060.0,0.5764846]
[1760202713229,0.38381,112070.0,112060.0,0.5764846]
[1760202714828,0.4856395,112070.0,112060.0,0.5632546]
[1760202716136,0.4856395,112070.0,112060.0,0.5760046]
[1760202716328,0.4729595,112070.0,112060.0,0.5760046]
[1760202720129,0.4856395,112070.0,112060.0,0.03574]
[1760202720336,0.1248475,112060.0,112050.0,0.0323371]
[1760202720532,0.5759596,112060.0,112050.0,0.4834492]
[1760202720933,0.5759596,112060.0,112050.0,0.5726147]
[1760202721139,0.02301,112060.0,112050.0,0.1342526]
[1760202721434,0.1121675,112060.0,112050.0,0.1342526]
[1760202721635,0.1121675,112060.0,112050.0,0.5853647]
[1760202722436,0.1248475,112060.0,112050.0,0.5853647]
[1760202722631,0.9367596,112060.0,112050.0,0.4834492]
[1760202722830,0.9367596,112060.0,112050.0,0.5726146]
[1760202723036,0.4856475,112060.0,112050.0,0.5726146]
[1760202723831,0.4856475,112060.0,112050.0,0.5853646]
[1760202724036,0.38381,112060.0,112050.0,0.5853646]
[1760202724238,0.4856475,112060.0,112050.0,0.5853646]
[1760202725838,0.4856475,112060.0,112050.0,0.1215025]
[1760202726038,0.4856475,112060.0,112050.0,0.5726146]
[1760202726440,0.3608,112070.0,112050.0,1.0364767]
[1760202726643,0.54469356,112080.0,112070.0,0.03574]
[1760202726942,0.54469356,112080.0,112070.0,0.4868521]
[1760202727134,0.54469356,112080.0,112070.0,0.5760016]
[1760202728031,0.18389356,112080.0,112070.0,0.5760016]
[1760202728937,0.54469356,112080.0,112070.0,0.4868521]
[1760202729137,0.55737356,112080.0,112070.0,0.4868521]
[1760202729534,0.55737356,112080.0,112070.0,0.5760017]
[1760202729940,0.54469356,112080.0,112070.0,0.5760017]
[1760202731641,0.1242275,112060.0,112050.0,0.0314271]
[1760202731944,0.9361396,112060.0,112050.0,0.1205926]
[1760202732146,0.9361396,112060.0,112050.0,0.5717047]
[1760202732441,0.4850275,112060.0,112050.0,0.4825392]
[1760202732640,0.9361396,112060.0,112050.0,0.4825392]
[1760202733041,0.9361396,112060.0,112050.0,0.0314271]
[1760202733441,0.9361396,112060.0,112050.0,0.4825392]
[1760202734245,0.4850275,112060.0,112050.0,0.4825392]
[1760202734544,0.9361396,112060.0,112050.0,0.4825392]
[1760202734948,0.4850275,112060.0,112050.0,0.4825392]
[1760202737448,0.9361396,112060.0,112050.0,0.4825392]
[1760202737942,0.9361396,112060.0,112050.0,0.0314271]
[1760202738149,1.2969396,112060.0,112050.0,0.0093471]
[1760202738448,0.1242355,112050.0,112040.0,0.4731921]
[1760202738742,0.9361476,112050.0,112040.0,0.4731921]
[1760202739146,0.4850355,112050.0,112040.0,0.4731921]
[1760202739351,0.4850355,112050.0,112040.0,0.02208]
[1760202739647,0.1242434,112040.0,112030.0,0.56247046]
[1760202739847,0.4850434,112040.0,112030.0,0.56247046]
[1760202740050,0.9361555,112040.0,112030.0,0.48228029]
[1760202740248,0.4850434,112040.0,112030.0,0.48228029]
[1760202740442,0.4850434,112040.0,112030.0,0.57146169]
[1760202740645,0.4850434,112040.0,112030.0,0.57246169]
[1760202741047,0.4850434,112040.0,112030.0,0.58699169]
[1760202741552,0.55617533,112040.0,112030.0,0.58699169]
[1760202746558,0.19537533,112040.0,112030.0,0.58699169]
[1760202746749,0.55617533,112040.0,112030.0,0.58699169]
[1760202747455,0.55617533,112040.0,112030.0,0.57346169]
[1760202748347,0.46700193,112040.0,112030.0,0.58699169]
[1760202748552,0.54313533,112040.0,112030.0,0.58699169]
[1760202750159,0.07113193,112040.0,112030.0,1.79890379]
[1760202750561,0.4719922,112060.0,112050.0,0.1026955]
[1760202750760,0.4719922,112060.0,112050.0,1.0269997]
[1760202751158,0.4719922,112060.0,112050.0,0.5758876]
[1760202751953,0.4850322,112060.0,112050.0,0.1112455]
[1760202752258,0.4850322,112060.0,112050.0,0.5623576]
[1760202752760,0.4850322,112060.0,112050.0,0.4731921]
[1760202753862,0.4850322,112060.0,112050.0,0.5623576]
[1760202754064,0.4850322,112060.0,112050.0,0.5758876]
[1760202754265,0.4850322,112060.0,112050.0,0.5623576]
[1760202754563,0.39587,112060.0,112050.0,0.5758876]
[1760202754867,0.39587,112060.0,112050.0,0.1247755]
[1760202755067,0.38283,112060.0,112050.0,0.5758876]
[1760202756164,0.39587,112060.0,112050.0,0.5758876]
[1760202759768,0.38283,112060.0,112050.0,0.5758876]
[1760202761469,0.38283,112060.0,112050.0,0.52582822]
[1760202761973,0.02203,112060.0,112050.0,0.52582822]
[1760202762471,0.02203,112060.0,112050.0,0.88662822]
[1760202763877,0.02333,112070.0,112060.0,0.1236553]
[1760202764075,0.02333,112070.0,112060.0,0.52470802]
[1760202766576,0.45587116,112080.0,112070.0,0.1236496]
[1760202766775,0.45587116,112080.0,112070.0,0.52470232]
[1760202768077,0.45587116,112080.0,112070.0,0.1236496]
[1760202768778,0.46984116,112080.0,112070.0,0.1236496]
[1760202769178,0.55898276,112080.0,112070.0,0.1108696]
[1760202771076,0.46984116,112080.0,112070.0,0.1236496]
[1760202771973,0.45587116,112080.0,112070.0,0.1236496]
[1760202772178,0.45587116,112080.0,112070.0,0.52470232]
[1760202774683,0.45587116,112080.0,112070.0,0.1236496]
[1760202778184,0.45587116,112080.0,112070.0,0.52470232]
[1760202779686,0.46984116,112080.0,112070.0,0.02172]
[1760202780580,0.46984116,112080.0,112070.0,0.1236496]
[1760202781687,0.46984116,112080.0,112070.0,0.1108696]
[1760202783080,0.46984116,112080.0,112070.0,0.1236496]
[1760202784090,0.46984116,112080.0,112070.0,0.52470232]
[1760202784289,0.46984116,112080.0,112070.0,0.1236496]
[1760202784890,0.46984116,112080.0,112070.0,0.1108696]
[1760202786389,0.46984116,112080.0,112070.0,0.1236496]
[1760202786590,0.45587116,112080.0,112070.0,0.1236496]
[1760202787286,0.46984116,112080.0,112070.0,0.1236496]
[1760202787493,0.46984116,112080.0,112070.0,0.52470232]
[1760202791894,0.45587116,112080.0,112070.0,0.52470232]
[1760202793595,0.46874116,112080.0,112070.0,0.52470232]
[1760202794197,0.45587116,112080.0,112070.0,0.52470232]
[1760202797599,0.46874116,112080.0,112070.0,0.52470232]
[1760202798299,0.46874116,112080.0,112070.0,0.43555272]
[1760202798499,0.46874116,112080.0,112070.0,0.52470232]
[1760202799599,0.45587116,112080.0,112070.0,0.52470232]
[1760202801097,0.46874116,112080.0,112070.0,0.52470232]
[1760202803008,0.45587116,112080.0,112070.0,0.52470232]
[1760202803407,0.46874116,112080.0,112070.0,0.52470232]
[1760202804610,0.45587116,112080.0,112070.0,0.52470232]
[1760202809419,0.46874116,112080.0,112070.0,0.52470232]
[1760202809713,0.46874116,112080.0,112070.0,0.1108696]
[1760202809714,0.55788276,112080.0,112070.0,0.1108696]
[1760202810622,0.46874116,112080.0,112070.0,0.1108696]
[1760202810922,0.46874116,112080.0,112070.0,0.1240096]
[1760202811523,0.46984801,112080.0,112070.0,0.52506232]
[1760202813227,0.45697801,112080.0,112070.0,0.52506232]
[1760202813426,0.46984801,112080.0,112070.0,0.52506232]
[1760202817927,0.46984801,112080.0,112070.0,0.51192232]
[1760202818725,0.46984801,112080.0,112070.0,0.1108696]
[1760202820329,0.46984801,112080.0,112070.0,0.1241896]
[1760202821229,0.10904801,112080.0,112070.0,0.1241896]
[1760202821431,0.46984801,112080.0,112070.0,0.1241896]
[1760202821828,0.46984801,112080.0,112070.0,0.1108696]
[1760202822831,0.46984801,112080.0,112070.0,0.1245696]
[1760202823432,0.46984801,112080.0,112070.0,0.57561351]
[1760202825130,0.55898961,112080.0,112070.0,0.56191351]
[1760202825932,0.55898961,112080.0,112070.0,0.1108696]
[1760202826133,0.55898961,112080.0,112070.0,0.56191351]
[1760202830234,0.46984801,112080.0,112070.0,0.57561351]
[1760202831331,0.46984801,112080.0,112070.0,0.56191351]
[1760202833433,1.41003352,112080.0,112070.0,0.02172]
[1760202833739,0.1254875,112060.0,112050.0,0.56136941]
[1760202834033,0.39713,112060.0,112050.0,0.56136941]
[1760202834339,0.38345,112060.0,112050.0,0.57506941]
[1760202834533,0.38455685,112060.0,112050.0,1.02611332]
[1760202841742,0.02375685,112060.0,112050.0,1.02611332]
[1760202841937,0.38455685,112060.0,112050.0,1.02611332]
[1760202842138,0.00110685,112060.0,112050.0,1.78691332]
[1760202842443,0.00110685,112060.0,112050.0,1.42611332]
[1760202843646,0.00110685,112060.0,112050.0,1.78691332]
[1760202864560,0.00110685,112060.0,112050.0,1.02611332]
[1760202864759,0.36190685,112060.0,112050.0,1.02611332]
[1760202865763,0.00110685,112060.0,112050.0,1.02611332]
[1760202876478,0.02368685,112060.0,112050.0,0.1240255]
[1760202876677,0.02368685,112060.0,112050.0,1.02611332]
[1760202877586,0.02368685,112060.0,112050.0,0.1240255]
[1760202877778,0.02368685,112060.0,112050.0,1.02611332]
[1760202882985,0.00110685,112060.0,112050.0,1.02611332]
[1760202885486,0.00110685,112060.0,112050.0,0.52498902]
[1760202898603,0.00110685,112060.0,112050.0,0.88578902]
[1760202900301,0.00110685,112060.0,112050.0,0.1240255]
[1760202900600,0.00110685,112060.0,112050.0,0.52498902]
[1760202901298,0.00110685,112060.0,112050.0,0.88578902]
[1760202903199,0.43254116,112080.0,112050.0,1.37495452]
[1760202903398,0.45435116,112080.0,112070.0,0.52454312]
[1760202906703,0.45435116,112080.0,112070.0,0.1235796]
[1760202907202,0.45435116,112080.0,112070.0,0.52454312]
[1760202912206,0.45435116,112080.0,112070.0,0.1235796]
[1760202912406,0.45435116,112080.0,112070.0,0.52454312]
[1760202913706,0.45435116,112080.0,112070.0,0.1235796]
[1760202914009,0.45435116,112080.0,112070.0,0.52454312]
[1760202917614,0.95613276,112080.0,112070.0,0.1101496]
[1760202924620,1.31693276,112080.0,112070.0,0.1101496]
[1760202925121,1.31693276,112080.0,112070.0,0.021]
[1760202925319,0.03471,112070.0,112060.0,0.52517392]
[1760202925520,0.39551,112070.0,112060.0,0.1242104]
[1760202926017,0.39551,112070.0,112060.0,0.52517392]
[1760202927920,0.38287,112070.0,112060.0,0.52517392]
[1760202936933,0.4846596,112070.0,112060.0,0.02163]
[1760202937630,0.4846596,112070.0,112060.0,0.03442]
[1760202937830,0.39551,112070.0,112060.0,0.1235775]
[1760202938433,0.39551,112070.0,112060.0,0.1107875]
[1760202940234,0.39551,112070.0,112060.0,0.1243475]
[1760202945039,0.38287,112070.0,112060.0,0.1243475]
[1760202945537,0.38287,112070.0,112060.0,0.52531102]
[1760202945933,0.3608,112070.0,112060.0,0.92531102]
[1760202947435,0.3826,112070.0,112060.0,0.5243475]
[1760202947739,0.3826,112070.0,112060.0,0.97536002]
[1760202948937,0.3608,112070.0,112060.0,0.97536002]
[1760202950138,0.3826,112070.0,112060.0,0.97536002]
[1760202950638,0.3608,112070.0,112060.0,0.97536002]
[1760202950840,0.3826,112070.0,112060.0,0.97536002]
[1760202953141,0.3608,112070.0,112060.0,0.97536002]
[1760202953342,0.3826,112070.0,112060.0,0.97536002]
[1760202953543,0.3608,112070.0,112060.0,0.97536002]
[1760202954736,0.45434116,112080.0,112070.0,0.1241096]
[1760202954940,0.45434116,112080.0,112070.0,0.57512212]
[1760202955446,0.43254116,112080.0,112070.0,0.57512212]
[1760202956448,0.3608,112110.0,112100.0,0.1240857]
[1760202956646,0.3826,112120.0,112110.0,0.1240778]
[1760202956836,0.3826,112120.0,112110.0,1.02610284]
[1760202957040,0.45430845,112120.0,112110.0,1.02610284]
[1760202957544,0.44330845,112120.0,112110.0,1.02610284]
[1760202958247,0.44330845,112120.0,112110.0,1.03511758]
[1760202960947,0.44330845,112120.0,112110.0,0.58410506]
[1760202961149,0.44330845,112120.0,112110.0,1.03511758]
[1760202962137,0.44330845,112120.0,112110.0,0.58410506]
[1760202962342,0.45707845,112120.0,112110.0,0.58410506]
[1760202965348,0.44330845,112120.0,112110.0,0.58410506]
[1760202968552,0.45707845,112120.0,112110.0,0.58410506]
[1760202970650,0.45707845,112120.0,112110.0,0.49498726]
[1760202970850,0.45707845,112120.0,112110.0,0.04397474]
[1760202971052,0.45707845,112120.0,112110.0,0.49498726]
[1760202973644,0.54618825,112120.0,112110.0,0.49498726]
[1760202975253,0.99720077,112120.0,112110.0,0.03091474]
[1760202979057,0.54618825,112120.0,112110.0,0.03091474]
[1760202979253,0.99720077,112120.0,112110.0,0.03091474]
[1760202979854,0.99720077,112120.0,112110.0,0.48192726]
[1760202985958,0.54618825,112120.0,112110.0,0.48192726]
[1760202986259,0.45707845,112120.0,112110.0,0.57104506]
[1760202986458,0.44330845,112120.0,112110.0,0.58482506]
[1760202986756,0.45638845,112120.0,112110.0,0.58482506]
[1760202987359,0.45638845,112120.0,112110.0,0.13381254]
[1760202987560,0.45638845,112120.0,112110.0,0.58482506]
[1760202988358,0.44330845,112120.0,112110.0,1.03583758]
[1760202988559,0.42150845,112120.0,112110.0,1.03583758]
[1760202992062,0.07170845,112120.0,112110.0,1.03583758]
[1760202992562,0.02176,112120.0,112110.0,1.03583758]
[1760202994165,0.02176,112120.0,112110.0,0.13381254]
[1760202994566,0.02176,112120.0,112110.0,1.03583758]
[1760202995066,0.02176,112120.0,112110.0,0.58482506]
[1760202997067,0.09185739,112120.0,112110.0,0.58482506]
[1760202998871,0.09185739,112120.0,112110.0,0.13381254]
[1760202999170,0.46573739,112120.0,112110.0,0.49570726]
[1760202999866,0.45265739,112120.0,112110.0,0.49570726]
[1760203002663,0.09185739,112120.0,112110.0,0.49570726]
[1760203004370,0.09185739,112120.0,112110.0,0.94671978]
[1760203009570,0.09185739,112120.0,112110.0,0.44531116]
[1760203012275,0.18096719,112120.0,112110.0,0.44531116]
[1760203015473,0.19428719,112120.0,112110.0,0.03091474]
[1760203015775,0.55508719,112120.0,112110.0,0.43153116]
[1760203016077,0.55508719,112120.0,112110.0,0.44537116]
[1760203016375,0.46597739,112120.0,112110.0,0.44537116]
[1760203019479,0.55508719,112120.0,112110.0,0.44537116]
[1760203027587,0.54176719,112120.0,112110.0,0.44537116]
[1760203028787,0.54176719,112120.0,112110.0,0.04475474]
[1760203029087,0.54176719,112120.0,112110.0,0.44537116]
[1760203033390,0.55554719,112120.0,112110.0,0.04475474]
[1760203033589,0.55554719,112120.0,112110.0,0.44537116]
[1760203035588,0.55554719,112120.0,112110.0,0.43153116]
[1760203036391,0.55554719,112120.0,112110.0,0.44488116]
[1760203036691,0.19474719,112120.0,112110.0,0.44488116]
[1760203037485,0.10563739,112120.0,112110.0,0.44488116]
[1760203037691,0.18096719,112120.0,112110.0,0.44488116]
[1760203042098,0.54176719,112120.0,112110.0,0.44488116]
[1760203043594,0.55554719,112120.0,112110.0,0.44488116]
[1760203047395,0.55554719,112120.0,112110.0,0.43153116]
[1760203048501,0.95554719,112120.0,112110.0,0.00901474]
[1760203048697,0.95554719,112120.0,112090.0,0.40061642]
[1760203048900,0.1239636,112090.0,112080.0,0.43506642]
[1760203049102,0.1239636,112090.0,112080.0,0.42200642]
[1760203049899,0.02105,112090.0,112080.0,0.43535642]
[1760203050097,0.02105,112090.0,112080.0,0.88529802]
[1760203050401,0.02105,112090.0,112080.0,0.89434292]
[1760203050801,0.02105,112090.0,112080.0,0.53354292]
[1760203051003,0.02105,112090.0,112080.0,0.89434292]
[1760203054102,0.02105,112100.0,112090.0,0.123871]
[1760203054301,0.02105,112100.0,112090.0,0.88528742]
[1760203065315,0.1101757,112100.0,112090.0,0.79615642]
[1760203065514,0.1101757,112100.0,112090.0,0.88529002]
[1760203066417,0.1230157,112100.0,112090.0,0.88529002]
[1760203066615,0.1230157,112100.0,112090.0,0.02139]
[1760203067116,0.8838157,112100.0,112090.0,0.02139]
[1760203069617,0.8838157,112100.0,112090.0,0.47231603]
[1760203070518,0.8838157,112100.0,112090.0,0.02139]
[1760203071021,0.8838157,112100.0,112080.0,0.92326083]
[1760203071022,0.1251736,112090.0,112080.0,0.0090449]
[1760203071216,0.93689963,112090.0,112080.0,0.0090449]
[1760203071417,0.1251816,112080.0,112070.0,0.47232603]
[1760203072221,0.8859816,112080.0,112070.0,0.45995131]
[1760203072417,1.33690763,112080.0,112070.0,0.45995131]
[1760203072817,1.33690763,112080.0,112070.0,0.00902528]
[1760203072818,0.8859816,112080.0,112070.0,0.00902528]